bitfinex/quotes_BTCUSD_20250703
["timestamp","ask_amount","ask_price","bid_price","bid_amount"]
[1751508218045,0.22666,109050.0,109040.0,0.60765194]
[1751508218245,0.22666,109050.0,109040.0,0.29371971]
[1751508218499,0.22666,109050.0,109040.0,0.2846352]
[1751508218692,0.22666,109050.0,109040.0,0.07370371]
[1751508218927,0.22666,109050.0,109040.0,0.08287465]
[1751508219136,0.22666,109050.0,109040.0,0.08287457]
[1751508219551,0.22766,109050.0,109040.0,0.29399481]
[1751508219783,0.22766,109050.0,109040.0,0.28482412]
[1751508220184,0.22766,109050.0,109040.0,0.08306357]
[1751508220421,0.22766,109050.0,109040.0,0.05136357]
[1751508220635,0.22766,109050.0,109040.0,0.03682272]
[1751508220839,0.24336,109050.0,109040.0,0.03682272]
[1751508221057,0.24536,109050.0,109040.0,0.03782272]
[1751508221267,0.24536,109050.0,109040.0,0.01044604]
[1751508223669,0.26146,109050.0,109040.0,0.01044604]
[1751508224495,0.26146,109050.0,109040.0,0.00108618]
[1751508224782,0.58456292,109050.0,109040.0,0.00108618]
[1751508224989,0.59373243,109050.0,109040.0,0.00108618]
[1751508225199,0.60290211,109050.0,109040.0,0.00108618]
[1751508225409,0.63963987,109050.0,109040.0,0.00108618]
[1751508225617,0.74156997,109050.0,109040.0,0.00108618]
[1751508225828,0.7507399,109050.0,109040.0,0.00108618]
[1751508226648,0.7415698,109050.0,109040.0,0.00108618]
[1751508227155,0.75073982,109050.0,109040.0,0.00108618]
[1751508227369,0.75113982,109050.0,109040.0,0.00108618]
[1751508227580,0.74197031,109050.0,109040.0,0.00108618]
[1751508227948,0.74197022,109050.0,109040.0,0.00108618]
[1751508228801,0.75114024,109050.0,109040.0,0.00108618]
[1751508231095,0.74197022,109050.0,109040.0,0.00108618]
[1751508231518,0.93454242,109050.0,109040.0,0.00108618]
[1751508231758,0.72363103,109050.0,109040.0,0.00108618]
[1751508231976,0.90703313,109050.0,109040.0,0.00108618]
[1751508237400,0.72363103,109050.0,109040.0,0.00108618]
[1751508237780,0.90703313,109050.0,109040.0,0.00108618]
[1751508238578,1.22096612,109050.0,109040.0,0.00108618]
[1751508238975,0.8978632,109050.0,109040.0,0.00108618]
[1751508241733,0.73280047,109050.0,109040.0,0.00108618]
[1751508245219,0.91620257,109050.0,109040.0,0.00108618]
[1751508252354,1.23013589,109050.0,109040.0,0.00108618]
[1751508252535,1.37086731,109050.0,109040.0,0.00108618]
[1751508253416,1.36986731,109050.0,109040.0,0.00108618]
[1751508254282,1.70986731,109050.0,109040.0,0.00108618]
[1751508254708,1.71186731,109050.0,109040.0,0.00208618]
[1751508254920,1.71898621,109050.0,109040.0,0.00108618]
[1751508255203,1.78680633,109050.0,109040.0,0.00108618]
[1751508255417,1.79180633,109050.0,109040.0,0.00208618]
[1751508258354,1.75720875,109050.0,109040.0,0.00208618]
[1751508259336,1.72398621,109050.0,109040.0,0.00208618]
[1751508265112,1.72398621,109050.0,109040.0,0.00208618]
[1751508267530,1.79180633,109050.0,109040.0,0.00208618]
[1751508269915,1.75720875,109050.0,109040.0,0.00208618]
[1751508274318,1.94180633,109050.0,109040.0,0.00208618]
[1751508276921,1.90720875,109050.0,109040.0,0.00208618]
[1751508286360,1.94180633,109050.0,109040.0,0.00208618]
[1751508287848,2.2056855,109050.0,109040.0,0.00208618]
[1751508288635,2.2006855,109050.0,109040.0,0.00108618]
[1751508288834,2.29944558,109050.0,109040.0,0.00208618]
[1751508289040,2.29744558,109050.0,109040.0,0.00108618]
[1751508289789,1.38736057,109050.0,109040.0,0.00108618]
[1751508290016,2.03449679,109050.0,109040.0,0.00108618]
[1751508290358,2.03749679,109050.0,109040.0,0.00208618]
[1751508292801,1.94473671,109050.0,109040.0,0.00208618]
[1751508295328,1.07094049,109050.0,109040.0,0.00208618]
[1751508295518,1.91519913,109050.0,109040.0,0.00208618]
[1751508302561,1.94979671,109050.0,109040.0,0.00208618]
[1751508309759,2.2126024,109050.0,109040.0,0.00208618]
[1751508310759,1.26806291,109050.0,109040.0,0.00208618]
[1751508310984,1.87469085,109050.0,109040.0,0.00208618]
[1751508311394,2.17800482,109050.0,109040.0,0.00208618]
[1751508312087,1.64297085,109050.0,109040.0,0.00208618]
[1751508312304,1.80962831,109050.0,109040.0,0.00208618]
[1751508313663,1.32007434,109050.0,109040.0,0.00208618]
[1751508313872,1.80958831,109050.0,109040.0,0.03428618]
[1751508314076,1.50056814,109050.0,109040.0,0.03428618]
[1751508315049,1.27827265,109050.0,109040.0,0.03428618]
[1751508315253,1.54451023,109050.0,109040.0,0.00208618]
[1751508316316,1.54414926,109050.0,109040.0,0.00208618]
[1751508317296,2.06139627,109050.0,109040.0,0.00208618]
[1751508317498,7.43769961,109050.0,109040.0,0.00208618]
[1751508317696,7.13438564,109050.0,109040.0,0.00208618]
[1751508317897,7.19526401,109050.0,109040.0,0.00208618]
[1751508318167,7.12227464,109050.0,109040.0,0.00208618]
[1751508318731,7.12227464,109050.0,109040.0,0.00108618]
[1751508318732,7.11627464,109050.0,109040.0,0.00108618]
[1751508318934,6.78966788,109050.0,109040.0,8.618e-05]
[1751508319106,6.79766788,109050.0,109040.0,0.00108618]
[1751508319307,6.80266788,109050.0,109040.0,0.00108618]
[1751508319785,6.89542796,109050.0,109040.0,0.00108618]
[1751508320146,7.21903472,109050.0,109040.0,0.00108618]
[1751508323108,7.71633472,109050.0,109040.0,0.00108618]
[1751508323306,7.35813038,109050.0,109040.0,0.00108618]
[1751508323767,7.2653703,109050.0,109040.0,0.00108618]
[1751508325676,2.2653703,109050.0,109040.0,0.00108618]
[1751508325998,7.2653703,109050.0,109040.0,0.00108618]
[1751508326399,7.2653703,109050.0,109040.0,0.00128618]
[1751508329387,7.58897706,109050.0,109040.0,0.00128618]
[1751508329633,7.62357464,109050.0,109040.0,0.00128618]
[1751508329843,7.86623599,109050.0,109040.0,0.00128618]
[1751508330892,7.38347684,109050.0,109040.0,0.00128618]
[1751508332233,7.48009684,109050.0,109040.0,0.00128618]
[1751508332452,7.38347684,109050.0,109040.0,0.00128618]
[1751508337984,7.32283622,109050.0,109040.0,0.00128618]
[1751508339941,7.35023017,109050.0,109040.0,0.00128618]
[1751508341590,7.57067017,109050.0,109040.0,0.00128618]
[1751508345403,2.57067017,109050.0,109040.0,0.00128618]
[1751508345604,7.57067017,109050.0,109040.0,0.00128618]
[1751508346566,8.53084983,109050.0,109040.0,0.00128618]
[1751508347180,8.56744592,109050.0,109040.0,0.00128618]
[1751508353262,7.65726626,109050.0,109040.0,0.00128618]
[1751508354861,8.56744592,109050.0,109040.0,0.00128618]
[1751508355092,7.19112741,109050.0,109040.0,0.00128618]
[1751508355315,6.61226022,109050.0,109040.0,0.00128618]
[1751508355536,1.35827018,109050.0,109040.0,0.03178618]
[1751508355766,1.39499018,109050.0,109040.0,0.03178618]
[1751508355995,1.19892567,109050.0,109040.0,0.03178618]
[1751508356221,1.38564567,109050.0,109040.0,0.03178618]
[1751508356856,1.72564567,109050.0,109040.0,0.03178618]
[1751508357080,1.53392567,109050.0,109040.0,0.03178618]
[1751508357283,1.71264567,109050.0,109040.0,0.03078618]
[1751508357491,1.71564567,109050.0,109040.0,0.03078618]
[1751508357698,1.71864567,109050.0,109040.0,0.03178618]
[1751508357903,1.75872651,109050.0,109040.0,0.03178618]
[1751508358355,1.57200651,109050.0,109040.0,0.03178618]
[1751508358560,1.75876651,109050.0,109040.0,0.03178618]
[1751508358982,1.43533287,109050.0,109040.0,0.03178618]
[1751508360049,1.02858053,109050.0,109040.0,0.03178618]
[1751508360256,0.93018995,109050.0,109040.0,0.03178618]
[1751508360459,0.91185026,109050.0,109040.0,0.03178618]
[1751508360670,1.26101994,109050.0,109040.0,0.03178618]
[1751508360880,1.26718979,109050.0,109040.0,0.03178618]
[1751508361305,0.29976703,109050.0,109040.0,0.03278618]
[1751508361528,0.80992067,109050.0,109040.0,0.06023093]
[1751508361796,0.48648703,109050.0,109040.0,0.06023093]
[1751508362445,0.48348703,109050.0,109040.0,0.05923093]
[1751508362654,0.48548703,109050.0,109040.0,0.06023093]
[1751508362867,0.80692067,109050.0,109040.0,0.05923093]
[1751508363068,0.80392067,109050.0,109040.0,0.05823093]
[1751508363275,0.80492067,109050.0,109040.0,0.03378618]
[1751508363579,0.35204067,109050.0,109040.0,0.03378618]
[1751508363789,0.58444067,109050.0,109040.0,0.03378618]
[1751508364202,0.59361001,109050.0,109040.0,0.03378618]
[1751508364420,0.35204067,109050.0,109040.0,0.03378618]
[1751508364634,0.37777007,109050.0,109040.0,0.03378618]
[1751508364848,0.38693975,109050.0,109040.0,0.03378618]
[1751508365057,0.3961096,109050.0,109040.0,0.06123093]
[1751508365271,0.3961096,109050.0,109040.0,0.03378618]
[1751508365474,0.41450875,109050.0,109040.0,0.03378618]
[1751508365727,0.62144102,109050.0,109040.0,0.03378618]
[1751508365941,0.61527117,109050.0,109040.0,0.03478618]
[1751508366406,0.62444102,109050.0,109040.0,0.03478618]
[1751508366623,0.63361104,109050.0,109040.0,0.03478618]
[1751508366849,0.61527117,109050.0,109040.0,0.03478618]
[1751508367079,0.62444093,109050.0,109040.0,0.03478618]
[1751508367283,0.63061086,109050.0,109040.0,0.03378618]
[1751508367494,0.62244152,109050.0,109040.0,0.03478618]
[1751508367673,0.80584421,109050.0,109040.0,0.03478618]
[1751508368758,0.88026485,109050.0,109040.0,0.03478618]
[1751508369878,1.19452856,109050.0,109040.0,0.03478618]
[1751508370099,1.53452856,109050.0,109040.0,0.00428618]
[1751508370346,1.56912614,109050.0,109040.0,0.00428618]
[1751508371600,1.55062856,109050.0,109040.0,0.00428618]
[1751508371811,1.56582856,109050.0,109040.0,0.00428618]
[1751508381123,1.72621926,109050.0,109040.0,0.00428618]
[1751508382515,1.72521926,109050.0,109040.0,0.00128618]
[1751508382667,1.72921926,109050.0,109040.0,0.00228618]
[1751508383116,1.69462168,109050.0,109040.0,0.00228618]
[1751508383320,1.66158864,109050.0,109040.0,0.00228618]
[1751508384542,1.39792864,109050.0,109040.0,0.00228618]
[1751508384753,1.30516856,109050.0,109040.0,0.01818618]
[1751508384994,1.53612856,109050.0,109040.0,0.01718618]
[1751508385333,1.53912856,109050.0,109040.0,0.03298618]
[1751508385958,1.53912856,109050.0,109040.0,0.01718618]
[1751508387705,1.53912856,109050.0,109040.0,0.00128618]
[1751508389484,1.75952856,109050.0,109040.0,0.00128618]
[1751508394997,1.82622614,109050.0,109040.0,0.00128618]
[1751508395202,1.85925918,109050.0,109040.0,0.00128618]
[1751508395584,1.85925918,109050.0,109040.0,1e-08]
[1751508395847,7.12960305,109050.0,109040.0,1e-08]
[1751508396043,7.19607295,109050.0,109040.0,1e-08]
[1751508396374,7.28883303,109050.0,109040.0,1e-08]
[1751508400476,7.29362031,109050.0,109040.0,1e-08]
[1751508404690,7.28883303,109050.0,109040.0,1e-08]
[1751508407183,7.38545303,109050.0,109040.0,1e-08]
[1751508407404,7.28883303,109050.0,109040.0,1e-08]
[1751508407617,6.96539939,109050.0,109040.0,1e-08]
[1751508408178,7.28883303,109050.0,109040.0,1e-08]
[1751508409427,1.90056949,109050.0,109040.0,1e-08]
[1751508412877,2.05056949,109050.0,109040.0,1e-08]
[1751508413099,2.00396864,109050.0,109040.0,1e-08]
[1751508413311,1.72364856,109050.0,109040.0,1e-08]
[1751508413494,1.33756856,109050.0,109040.0,0.03220001]
[1751508413736,1.57128856,109050.0,109040.0,0.03220001]
[1751508413918,1.91128856,109050.0,109040.0,0.03220001]
[1751508414182,1.97775846,109050.0,109040.0,1e-08]
[1751508414534,2.07051854,109050.0,109040.0,1e-08]
[1751508414760,2.10261854,109050.0,109040.0,1e-08]
[1751508416677,1.7268016,109050.0,109040.0,1e-08]
[1751508416907,1.91132856,109050.0,109040.0,0.04947811]
[1751508417552,1.67756856,109050.0,109040.0,0.04947811]
[1751508417788,1.12363113,109050.0,109040.0,0.03230001]
[1751508418005,1.44706477,109050.0,109040.0,0.04947848]
[1751508418214,1.77049841,109050.0,109040.0,0.04947848]
[1751508419271,1.76132856,109050.0,109040.0,0.04947848]
[1751508420323,1.76132856,109050.0,109040.0,0.04947692]
[1751508421383,1.57364856,109050.0,109040.0,0.04947692]
[1751508421604,1.76128856,109050.0,109040.0,0.04947692]
[1751508422504,1.76128856,109050.0,109040.0,0.03230001]
[1751508422714,1.57364856,109050.0,109040.0,0.03230001]
[1751508422929,1.76124856,109050.0,109040.0,0.03230001]
[1751508424606,1.76124856,109050.0,109040.0,0.03250001]
[1751508428157,1.07598259,109050.0,109040.0,0.03250001]
[1751508428367,1.45595429,109050.0,109040.0,0.03250001]
[1751508429191,1.44895429,109050.0,109040.0,0.0325]
[1751508429618,1.45495429,109050.0,109040.0,0.0345]
[1751508431810,1.27155219,109050.0,109040.0,0.0345]
[1751508432020,1.26238217,109050.0,109040.0,0.0345]
[1751508432225,1.27155219,109050.0,109040.0,0.0345]
[1751508438826,1.45495429,109050.0,109040.0,0.0345]
[1751508439033,1.77838793,109050.0,109040.0,0.0345]
[1751508439238,1.76921833,109050.0,109040.0,0.0345]
[1751508439403,1.76004848,109050.0,109040.0,0.0022]
[1751508439602,1.75087846,109050.0,109040.0,0.0022]
[1751508446223,1.11318111,109050.0,109040.0,0.0022]
[1751508446459,1.59498599,109050.0,109040.0,0.0352]
[1751508446884,1.28072245,109050.0,109040.0,0.0352]
[1751508447288,0.94811871,109050.0,109040.0,0.0352]
[1751508447505,1.27155235,109050.0,109040.0,0.0352]
[1751508447707,1.27155235,109050.0,109040.0,0.05239912]
[1751508447933,1.59498599,109050.0,109040.0,0.05239912]
[1751508448136,1.59498599,109050.0,109040.0,0.06334387]
[1751508449764,1.77838809,109050.0,109040.0,0.04684387]
[1751508451534,1.59498599,109050.0,109040.0,0.04684387]
[1751508451939,1.60415609,109050.0,109040.0,0.04684387]
[1751508454188,1.78755819,109050.0,109040.0,0.04684387]
[1751508454853,1.14069091,109050.0,109040.0,0.04684387]
[1751508455145,1.78755819,109050.0,109040.0,0.04684387]
[1751508455904,1.77838851,109050.0,109040.0,0.04684387]
[1751508456109,1.76921858,109050.0,109040.0,0.04684387]
[1751508456332,1.80191858,109050.0,109040.0,0.04684387]
[1751508457489,1.80191858,109050.0,109040.0,0.04685969]
[1751508458443,1.85921846,109050.0,109040.0,0.04685969]
[1751508458655,1.85921846,109050.0,109040.0,0.04696016]
[1751508459078,1.85921846,109050.0,109040.0,0.01941494]
[1751508459277,2.00911973,109050.0,109040.0,0.01941494]
[1751508459701,2.01554977,109050.0,109040.0,0.01941494]
[1751508459938,2.16554977,109050.0,109040.0,0.01941494]
[1751508460145,2.19826859,109050.0,109040.0,0.01941494]
[1751508460413,2.13211291,109050.0,109040.0,0.01941494]
[1751508462512,2.13210766,109050.0,109040.0,0.01941494]
[1751508467398,2.13690313,109050.0,109040.0,0.01941494]
[1751508468514,2.13690313,109050.0,109040.0,0.01939329]
[1751508472728,2.13210766,109050.0,109040.0,0.01939329]
[1751508473777,2.19980884,109050.0,109040.0,0.01939329]
[1751508477829,2.15955942,109050.0,109040.0,0.01939329]
[1751508478663,2.09185824,109050.0,109040.0,0.01939329]
[1751508482816,2.09185551,109050.0,109040.0,0.01939329]
[1751508488291,2.09665098,109050.0,109040.0,0.01939329]
[1751508493676,1.88069667,109050.0,109040.0,0.01939329]
[1751508494312,1.91299667,109050.0,109040.0,0.01939329]
[1751508495006,1.91284994,109050.0,109040.0,0.01939329]
[1751508495220,1.91285814,109050.0,109040.0,0.01939329]
[1751508497297,1.90806267,109050.0,109040.0,0.01939329]
[1751508504396,1.90806001,109050.0,109040.0,0.01941252]
[1751508506411,2.27783884,109050.0,109040.0,0.01941252]
[1751508507396,2.27783772,109050.0,109040.0,0.01941252]
[1751508508412,2.28814902,109050.0,109040.0,0.01941252]
[1751508508614,2.30268987,109050.0,109040.0,0.0022]
[1751508509018,2.33012489,109050.0,109040.0,0.0022]
[1751508509154,7.33012489,109050.0,109040.0,0.0022]
[1751508509579,7.32712489,109050.0,109040.0,0.0012]
[1751508509786,7.36372098,109050.0,109040.0,0.0012]
[1751508509995,7.36472098,109050.0,109040.0,0.0012]
[1751508510417,7.36772098,109050.0,109040.0,0.0012]
[1751508512897,7.37251645,109050.0,109040.0,0.0012]
[1751508513370,7.33592036,109050.0,109040.0,0.0012]
[1751508513575,7.33590384,109050.0,109040.0,0.0012]
[1751508518764,7.32949388,109050.0,109040.0,0.0012]
[1751508520574,7.32897388,109050.0,109040.0,0.0012]
[1751508525240,2.32897388,109050.0,109040.0,0.0012]
[1751508525454,7.32897388,109050.0,109040.0,0.0012]
[1751508530915,7.32897388,109050.0,109040.0,1e-08]
[1751508531051,0.57479341,109040.0,109030.0,0.0002]
[1751508531275,6.88868036,109040.0,109030.0,0.00028619]
[1751508531675,6.91626136,109040.0,109030.0,0.00028619]
[1751508531875,6.94969822,109040.0,109030.0,0.00028619]
[1751508532491,6.95169822,109040.0,109030.0,0.00028619]
[1751508532913,6.95469822,109040.0,109030.0,0.00028619]
[1751508535250,6.98161037,109040.0,109030.0,0.00028619]
[1751508536487,7.00895917,109040.0,109030.0,0.00028619]
[1751508536898,7.02350002,109040.0,109030.0,0.00028619]
[1751508537094,7.17340129,109040.0,109030.0,0.00028619]
[1751508537308,7.51330631,109040.0,109030.0,0.00028619]
[1751508537544,7.20999738,109040.0,109030.0,0.00028619]
[1751508537921,7.51330631,109040.0,109030.0,0.00028619]
[1751508538127,7.51972695,109040.0,109030.0,0.00028619]
[1751508538849,7.21641802,109040.0,109030.0,0.00028619]
[1751508539052,6.30415352,109040.0,109030.0,0.00028619]
[1751508539249,0.76081608,109040.0,109030.0,0.03178619]
[1751508539467,1.68933211,109040.0,109030.0,0.03178619]
[1751508540463,1.68933211,109040.0,109030.0,0.04039185]
[1751508540644,1.68933634,109040.0,109030.0,0.04039185]
[1751508542424,1.99264527,109040.0,109030.0,0.04039185]
[1751508543170,1.99264527,109040.0,109030.0,0.05759933]
[1751508543383,1.99264527,109040.0,109030.0,0.04039185]
[1751508543973,1.99264527,109040.0,109030.0,0.02499185]
[1751508544631,2.02608213,109040.0,109030.0,0.02499185]
[1751508544828,2.16687525,109040.0,109030.0,0.00889185]
[1751508545055,2.18217525,109040.0,109030.0,0.00889185]
[1751508545180,2.18217525,109040.0,109030.0,0.00028619]
[1751508552115,2.18217053,109040.0,109030.0,0.00028619]
[1751508552552,2.50002031,109040.0,109030.0,0.00028619]
[1751508553392,2.64992158,109040.0,109030.0,0.00028619]
[1751508553594,2.67727038,109040.0,109030.0,0.00028619]
[1751508554764,7.67727038,109040.0,109030.0,0.00028619]
[1751508555191,7.6820653,109040.0,109030.0,0.00028619]
[1751508558180,1.54050405,109030.0,109020.0,0.002]
[1751508558425,1.9195627,109030.0,109020.0,0.0020862]
[1751508558638,1.61625377,109030.0,109020.0,0.0020862]
[1751508558874,1.58281691,109030.0,109020.0,0.0020862]
[1751508559346,1.61239991,109030.0,109020.0,0.0020862]
[1751508559793,1.60698142,109030.0,109020.0,0.0020862]
[1751508560666,1.82742142,109030.0,109020.0,0.0020862]
[1751508561588,1.64030142,109030.0,109020.0,0.0020862]
[1751508561833,1.82750142,109030.0,109020.0,0.0020862]
[1751508565719,2.17066422,109030.0,109020.0,0.0020862]
[1751508566710,2.16866422,109030.0,109020.0,0.0020862]
[1751508567110,2.17366422,109030.0,109020.0,0.0020862]
[1751508567456,2.17266422,109030.0,109020.0,0.0020862]
[1751508567655,2.17766422,109030.0,109020.0,0.0020862]
[1751508569604,7.17766422,109030.0,109020.0,0.0020862]
[1751508569809,6.91514629,109030.0,109020.0,0.0020862]
[1751508570544,6.91514394,109030.0,109020.0,0.0020862]
[1751508577770,6.96098394,109030.0,109020.0,0.0020862]
[1751508577980,6.96098789,109030.0,109020.0,0.0020862]
[1751508580504,6.91175103,109030.0,109020.0,0.0020862]
[1751508581961,6.53935356,109030.0,109020.0,0.0344862]
[1751508582175,1.53935356,109030.0,109020.0,0.0344862]
[1751508582909,1.5393592,109030.0,109020.0,0.0344862]
[1751508583553,1.5393592,109030.0,109020.0,0.04309487]
[1751508583752,1.86306363,109030.0,109020.0,0.04309487]
[1751508584589,1.21565477,109030.0,109020.0,0.04309487]
[1751508584757,1.86306363,109030.0,109020.0,0.04309487]
[1751508585240,1.86306363,109030.0,109020.0,0.02679487]
[1751508585778,1.85663938,109030.0,109020.0,0.02679487]
[1751508585985,1.40940045,109030.0,109020.0,0.04199487]
[1751508586205,1.59692045,109030.0,109020.0,0.05921194]
[1751508589000,1.59692045,109030.0,109020.0,0.05919955]
[1751508592101,1.59691865,109030.0,109020.0,0.05919955]
[1751508594508,1.59691865,109030.0,109020.0,0.0505951]
[1751508594949,1.59691865,109030.0,109020.0,0.0333862]
[1751508595143,1.59691865,109030.0,109020.0,0.04198708]
[1751508595285,1.59691865,109030.0,109020.0,0.05918807]
[1751508595468,1.59691865,109030.0,109020.0,0.05058719]
[1751508595667,1.59691865,109030.0,109020.0,0.05918768]
[1751508598517,1.59691865,109030.0,109020.0,0.05918596]
[1751508599766,1.87997622,109030.0,109020.0,0.05918596]
[1751508600390,1.87997622,109030.0,109020.0,0.04398596]
[1751508601004,1.87997503,109030.0,109020.0,0.04398596]
[1751508601609,1.87997503,109030.0,109020.0,0.02788596]
[1751508606283,1.87997503,109030.0,109020.0,0.01068612]
[1751508606710,1.91494622,109030.0,109020.0,0.01068612]
[1751508606925,1.87997608,109030.0,109020.0,0.01068785]
[1751508607346,1.87997608,109030.0,109020.0,0.0278924]
[1751508609805,1.87997608,109030.0,109020.0,0.0278977]
[1751508611263,1.91107608,109030.0,109020.0,0.0278977]
[1751508612766,1.91108015,109030.0,109020.0,0.02790016]
[1751508613447,1.89588015,109030.0,109020.0,0.02790016]
[1751508615337,1.91410087,109030.0,109020.0,0.02790016]
[1751508615513,1.91168015,109030.0,109020.0,0.02790016]
[1751508617317,1.89588015,109030.0,109020.0,0.02790016]
[1751508617958,1.87998015,109030.0,109020.0,0.02790016]
[1751508618915,1.87998015,109030.0,109020.0,0.02790267]
[1751508619825,1.87998472,109030.0,109020.0,0.02791251]
[1751508623360,1.91128472,109030.0,109020.0,0.02791251]
[1751508624426,1.97775462,109030.0,109020.0,0.02791251]
[1751508627105,2.0705147,109030.0,109020.0,0.02791251]
[1751508630099,1.97775462,109030.0,109020.0,0.02791251]
[1751508630304,2.28113562,109030.0,109020.0,0.01069497]
[1751508631449,1.97775209,109030.0,109020.0,0.01069497]
[1751508631658,1.91128219,109030.0,109020.0,0.01069497]
[1751508632052,1.99429091,109030.0,109020.0,0.01069497]
[1751508634141,2.14419218,109030.0,109020.0,0.01069497]
[1751508634492,2.48101004,109030.0,109020.0,0.01069497]
[1751508635012,2.17762904,109030.0,109020.0,0.01069497]
[1751508635236,2.48101004,109030.0,109020.0,0.01069497]
[1751508635849,7.48101004,109030.0,109020.0,0.01069497]
[1751508636754,7.48101004,109030.0,109020.0,0.0020862]
[1751508637873,7.48101004,109030.0,109020.0,0.0030038]
[1751508638303,7.48100823,109030.0,109020.0,0.0030038]
[1751508641359,7.17762723,109030.0,109020.0,0.0030038]
[1751508644776,2.17762723,109030.0,109020.0,0.0030038]
[1751508645180,7.17762723,109030.0,109020.0,0.0030038]
[1751508646977,7.17119929,109030.0,109020.0,0.0030038]
[1751508649303,7.18040598,109030.0,109020.0,0.0030038]
[1751508650596,7.51470335,109030.0,109020.0,0.0030038]
[1751508651448,7.52112773,109030.0,109020.0,0.0030038]
[1751508652509,7.52112773,109030.0,109020.0,1e-08]
[1751508652510,7.53566858,109030.0,109020.0,1e-08]
[1751508652727,0.84171701,109010.0,109000.0,0.0002]
[1751508652957,1.82079917,109010.0,109000.0,0.02616255]
[1751508653191,1.72803909,109010.0,109000.0,0.02616255]
[1751508653401,1.76204982,109010.0,109000.0,0.02616255]
[1751508654155,1.76304982,109010.0,109000.0,0.02616255]
[1751508654361,1.76504982,109010.0,109000.0,0.02616255]
[1751508657015,1.81076982,109010.0,109000.0,0.02616255]
[1751508658710,1.8107698,109010.0,109000.0,0.02616255]
[1751508661867,1.8468516,109010.0,109000.0,0.02616255]
[1751508663061,1.8107698,109010.0,109000.0,0.02616255]
[1751508663992,2.0312498,109010.0,109000.0,0.02616255]
[1751508664635,2.0467498,109010.0,109000.0,0.0261621]
[1751508664857,2.0632498,109010.0,109000.0,0.0261621]
[1751508666595,2.12760303,109010.0,109000.0,0.0261621]
[1751508666797,2.22036311,109010.0,109000.0,0.0261621]
[1751508667407,2.21836311,109010.0,109000.0,0.0261621]
[1751508667611,2.22036311,109010.0,109000.0,0.0261621]
[1751508667834,2.22336311,109010.0,109000.0,0.0261621]
[1751508668983,2.22036311,109010.0,109000.0,0.00894833]
[1751508669370,2.22336311,109010.0,109000.0,0.00894833]
[1751508674229,2.22336311,109010.0,109000.0,0.02615825]
[1751508674526,2.22335868,109010.0,109000.0,0.02615836]
[1751508677338,1.5238366,109010.0,109000.0,0.02615836]
[1751508677543,1.0907821,109010.0,109000.0,0.04125836]
[1751508677868,1.4309631,109010.0,109000.0,0.05765836]
[1751508678004,1.1984431,109010.0,109000.0,0.05765836]
[1751508678217,1.4309631,109010.0,109000.0,0.05765836]
[1751508678421,1.4310031,109010.0,109000.0,0.05765836]
[1751508679090,1.1984431,109010.0,109000.0,0.05765836]
[1751508679421,1.4310031,109010.0,109000.0,0.05765836]
[1751508679623,1.4309631,109010.0,109000.0,0.05765836]
[1751508680416,1.4309631,109010.0,109000.0,0.03184122]
[1751508680621,1.4309649,109010.0,109000.0,0.05766166]
[1751508681108,1.42454382,109010.0,109000.0,0.05766166]
[1751508683138,1.72792482,109010.0,109000.0,0.04044803]
[1751508695065,0.88864282,109010.0,109000.0,0.04044803]
[1751508695381,1.42454382,109010.0,109000.0,0.03184122]
[1751508696105,1.41854382,109010.0,109000.0,0.03184122]
[1751508696402,1.41954382,109010.0,109000.0,0.03184122]
[1751508697765,1.42154382,109010.0,109000.0,0.03184122]
[1751508704778,1.72492482,109010.0,109000.0,0.03184122]
[1751508712267,1.72492482,109010.0,109000.0,0.04298169]
[1751508712474,1.50444482,109010.0,109000.0,0.04298169]
[1751508715956,1.50444482,109010.0,109000.0,0.02788169]
[1751508716164,0.89768282,109010.0,109000.0,0.02788169]
[1751508716367,1.50444482,109010.0,109000.0,0.02788169]
[1751508722650,1.53644482,109010.0,109000.0,0.00034122]
[1751508730209,1.53644482,109010.0,109000.0,0.00895231]
[1751508731656,1.71978295,109010.0,109000.0,0.00895231]
[1751508733584,1.68634609,109010.0,109000.0,0.00895231]
[1751508735666,1.68634609,109010.0,109000.0,0.00895121]
[1751508739969,1.71978295,109010.0,109000.0,0.00895121]
[1751508740341,1.68634609,109010.0,109000.0,0.00895121]
[1751508741863,1.68634609,109010.0,109000.0,0.00895096]
[1751508744481,1.68634609,109010.0,109000.0,0.00034122]
[1751508746184,1.68618609,109010.0,109000.0,0.00034122]
[1751508746595,0.79942237,109000.0,108990.0,0.07589516]
[1751508746730,1.07886245,109000.0,108990.0,0.09214223]
[1751508747130,1.10644545,109000.0,108990.0,0.09214223]
[1751508747879,1.10744545,109000.0,108990.0,0.09314223]
[1751508748308,1.10744545,109000.0,108990.0,0.08814223]
[1751508748511,1.10744545,109000.0,108990.0,0.09675266]
[1751508749028,1.1176195,109000.0,108990.0,0.09675266]
[1751508750228,1.1176195,109000.0,108990.0,0.08055266]
[1751508750636,1.1176195,109000.0,108990.0,0.06525266]
[1751508753074,1.1176195,109000.0,108990.0,0.08247579]
[1751508755719,1.1176195,109000.0,108990.0,0.08247621]
[1751508756844,1.1632995,109000.0,108990.0,0.08247621]
[1751508757412,1.1632995,109000.0,108990.0,0.07386578]
[1751508761346,1.1942995,109000.0,108990.0,0.07386578]
[1751508761932,1.1942995,109000.0,108990.0,0.07386725]
[1751508774209,1.1942995,109000.0,108990.0,0.05664223]
[1751508774418,1.1942995,109000.0,108990.0,0.07386529]
[1751508777595,1.1667165,109000.0,108990.0,0.07386529]
[1751508778979,0.5599545,109000.0,108990.0,0.07386529]
[1751508779180,1.1667165,109000.0,108990.0,0.07386529]
[1751508780678,1.1667165,109000.0,108990.0,0.07386504]
[1751508784764,1.1667165,109000.0,108990.0,0.07406504]
[1751508784967,1.1671165,109000.0,108990.0,0.07406504]
[1751508790803,0.5603545,109000.0,108990.0,0.07406504]
[1751508790960,1.1361165,109000.0,108990.0,0.07406504]
[1751508791803,0.0024,109000.0,108990.0,0.40919803]
[1751508792023,0.50155455,109000.0,108990.0,0.10352325]
[1751508792247,0.20734727,109000.0,108990.0,0.10352325]
[1751508792465,0.51072827,109000.0,108990.0,0.10581703]
[1751508792889,0.32412827,109000.0,108990.0,0.10581703]
[1751508793077,0.51072827,109000.0,108990.0,0.10581703]
[1751508793521,0.52907638,109000.0,108990.0,0.10352325]
[1751508793738,0.82328324,109000.0,108990.0,0.10352325]
[1751508794744,0.82328316,109000.0,108990.0,0.10352325]
[1751508795176,0.82328307,109000.0,108990.0,0.10352325]
[1751508795595,0.19817355,109000.0,108990.0,0.10352325]
[1751508795795,0.19817355,109000.0,108990.0,0.10581703]
[1751508796004,0.50155455,109000.0,108990.0,0.10581703]
[1751508796210,0.0024,109000.0,108990.0,0.12035788]
[1751508796413,0.0024,109000.0,108990.0,0.1180641]
[1751508796414,0.18896,109000.0,108990.0,0.1180641]
[1751508796617,0.492341,109000.0,108990.0,0.1180641]
[1751508797028,0.305781,109000.0,108990.0,0.1180641]
[1751508797244,0.492341,109000.0,108990.0,0.1180641]
[1751508798372,0.18896,109000.0,108990.0,0.1180641]
[1751508798540,0.492341,109000.0,108990.0,0.1180641]